Workbook

Sheet Sector Interactive
M1: Employment Sector
M2: 3 | N2: =INDEX(Data!A8:A21,'Sector Interactive'!M2) -> Tourism
M6: Living Wage | O6: Nonlabour Cost
M7: Increment | O7: Fixed Share
M8: 3 | N8: =INDEX(Calculation!X1:X5,'Sector Interactive'!M8) -> 5.375 | O8: 3 | P8: =INDEX(Calculation!AB1:AB5,'Sector Interactive'!O8) -> 0.5
M12: Price | N12: Quantity | O12: FC | P12: VC
M13: Scale | N13: Scale | O13: Scale | P13: Scale
M14: =200-M15 -> 100 | N14: =200-N15 -> 100 | O14: =200-O15 -> 100 | P14: =200-P15 -> 100
M15: 100 | N15: 100 | O15: 100 | P15: 100

Sheet Economy Interactive
M1: Economy Wide Multiplier
M2: 3
M8: Sales Volume Multiplier Share
M9: 2

Sheet Calculation
V1: Living Wage Increment | X1: =X3/2 -> 2.6875 | Z1: Nonlabour Cost Fixed Share | AB1: 0 | AD1: Multiplier | AF1: 1 | AH1: Multiplier Quantity Share | AK1: 0
W2: ='Sector Interactive'!N8 -> 5.375 | X2: =(X3+X1)/2 -> 4.03125 | AA2: ='Sector Interactive'!P8 -> 0.5 | AB2: 0.25 | AE2: =INDEX(AF1:AF6,'Economy Interactive'!M2) -> 1.02 | AF2: 1.01 | AJ2: =INDEX(AK1:AK5,'Economy Interactive'!M9) -> 0.25 | AK2: 0.25
X3: =Data!$F$4-Data!$E$4 -> 5.375 | AB3: 0.5 | AF3: 1.02 | AK3: 0.5
X4: =(X5+X3)/2 -> 6.5625 | AB4: 0.75 | AF4: 1.03 | AK4: 0.75
X5: =Data!$F$4-Data!$E$2 -> 7.75 | AB5: 1 | AF5: 1.04 | AK5: 1 | AR5: Price Adjustment | AX5: ='Sector Interactive'!M14/100 -> 1
AF6: 1.05 | AI6: Simplified Example | AR6: Quantity Adjustment | AX6: ='Sector Interactive'!N14/100 -> 1 | BE6: Row index | BG6: ='Sector Interactive'!$M$2 -> 3
AR7: FC Adjustment | AX7: ='Sector Interactive'!O14/100 -> 1
AR8: VC Adjustment | AX8: ='Sector Interactive'!P14/100 -> 1
AB9: Variable | AC9: Variable | AE9: Addtl Rev | AF9: Additional | AG9: Revenue | AI9: Revenue and Cost without Living Wage | AR9: Revenue and Cost with Living Wage
R10: Expenses | V10: Living | W10: Additional | AB10: Cost | AC10: Cost | AE10: Retained | AF10: Revenue | AG10: Growth | AJ10: Costs | AP10: Living | AU10: Costs | AV10: Average | BE10: Graphing information
B11: Employment by Wage Category | I11: Wage Bill by Wage Category | P11: Sector | Q11: Sector | R11: Net | T11: Profit | V11: Wage | W11: Wage | Y11: Profit | AA11: Fixed | AB11: Net | AC11: Revenue | AE11: Net | AF11: to Restore | AG11: to Restore | AJ11: Net | AK11: Fixed | AL11: Variable | AM11: Labour | AP11: Wage | AU11: Net | AV11: Variable | AW11: Fixed | AX11: Variable | AY11: Labour
A12: Sector | B12: =Data!E7 -> $10.25-15.00 | C12: =Data!F7 -> $16.00-20.00 | D12: =Data!G7 -> $21.00-25.00 | E12: =Data!H7 -> $26.00-30.00 | F12: =Data!I7 -> $30.00-50.00 | G12: Total | I12: =Data!E7 -> $10.25-15.00 | J12: =Data!F7 -> $16.00-20.00 | K12: =Data!G7 -> $21.00-25.00 | L12: =Data!H7 -> $26.00-30.00 | M12: =Data!I7 -> $30.00-50.00 | N12: Total | P12: Revenue | Q12: Expenses | R12: Labour | S12: Profit | T12: Share | V12: Employees | W12: Costs | X12: Profit | Y12: Share | AA12: Cost | AB12: Labour | AC12: Share | AE12: Labour | AF12: Profit | AG12: Profit | AI12: Revenue | AJ12: Labour | AK12: Costs | AL12: Cost | AM12: Cost | AN12: Profit | AP12: Increment | AR12: Revenue | AS12: Price | AT12: Quantity | AU12: Labour | AV12: Cost | AW12: Costs | AX12: Cost | AY12: Cost | AZ12: Profit | BE12: Revenue | BF12: FC | BG12: VC | BH12: Labour | BI12: Profit
A13: =Data!A8 -> Forestry | B13: =Data!$C8*Data!E8/100 -> 105.6 | C13: =Data!$C8*Data!F8/100 -> 233.28 | D13: =Data!$C8*Data!G8/100 -> 122.88 | E13: =Data!$C8*Data!H8/100 -> 87.36 | F13: =Data!$C8*Data!I8/100 -> 410.88 | G13: =Data!$C8*Data!J8/100 -> 960 | I13: =B13*Data!E$4*Data!$B$3*Data!$B$4 -> 2333100 | J13: =C13*Data!F$4*Data!$B$3*Data!$B$4 -> 7348320 | K13: =D13*Data!G$4*Data!$B$3*Data!$B$4 -> 4945920 | L13: =E13*Data!H$4*Data!$B$3*Data!$B$4 -> 4280640 | M13: =F13*Data!I$4*Data!$B$3*Data!$B$4 -> 28761600 | N13: =SUM(I13:M13) -> 47669580 | P13: =N13/Data!G29*100 -> 203716148.9 | Q13: =P13*Data!B29/100 -> 169288116.6 | R13: =Q13-N13 -> 121618536.6 | S13: =P13-Q13 -> 34428032.27 | T13: =S13/P13 -> 0.1690000153 | V13: =B13 -> 105.6 | W13: =V13*$W$2*Data!$B$3*Data!$B$4 -> 993300 | X13: =S13-W13 -> 33434732.27 | Y13: =X13/P13 -> 0.1641241131 | AA13: =R13*$AA$2 -> 60809268.3 | AB13: =R13-AA13 -> 60809268.3 | AC13: =AB13/P13*100 -> 29.84999895 | AE13: =100-AC13 -> 70.15000105 | AF13: =W13/(1-AE13/100) -> 3327638.308 | AG13: =AF13/P13*100 -> 1.633468101 | AI13: 100 | AJ13: =AI13*R13/P13 -> 59.6999979 | AK13: =$AA$2*AJ13 -> 29.84999895 | AL13: =AJ13-AK13 -> 29.84999895 | AM13: =AI13*N13/P13 -> 23.40000057 | AN13: =AI13-AK13-AL13-AM13 -> 16.90000153 | AP13: =W13/N13*100 -> 2.083718799 | AR13: =AS13*AT13 -> 100 | AS13: =$AX$5 -> 1 | AT13: =100*$AX$6 -> 100 | AU13: =AW13+AX13 -> 59.6999979 | AV13: =AL13/AI13*$AX$8 -> 0.2984999895 | AW13: =AK13*$AX$7 -> 29.84999895 | AX13: =AV13*AT13 -> 29.84999895 | AY13: =AM13*(1+AP13/100) -> 23.88759078 | AZ13: =AR13-AW13-AX13-AY13 -> 16.41241131 | BD13: No LW | BE13: =INDEX(AI13:AI26,$BG$6) -> 100 | BF13: =INDEX(AK13:AK26,$BG$6) -> 29.84999967 | BG13: =INDEX(AL13:AL26,$BG$6) -> 29.84999967 | BH13: =INDEX(AM13:AM26,$BG$6) -> 25.39999914 | BI13: =INDEX(AN13:AN26,$BG$6) -> 14.90000153
A14: =Data!A9 -> Food & Beverages | B14: =Data!$C9*Data!E9/100 -> 535.135 | C14: =Data!$C9*Data!F9/100 -> 88.425 | D14: =Data!$C9*Data!G9/100 -> 13.755 | E14: =Data!$C9*Data!H9/100 -> 12.445 | F14: =Data!$C9*Data!I9/100 -> 4.585 | G14: =Data!$C9*Data!J9/100 -> 654.345 | I14: =B14*Data!E$4*Data!$B$3*Data!$B$4 -> 11823138.91 | J14: =C14*Data!F$4*Data!$B$3*Data!$B$4 -> 2785387.5 | K14: =D14*Data!G$4*Data!$B$3*Data!$B$4 -> 553638.75 | L14: =E14*Data!H$4*Data!$B$3*Data!$B$4 -> 609805 | M14: =F14*Data!I$4*Data!$B$3*Data!$B$4 -> 320950 | N14: =SUM(I14:M14) -> 16092920.16 | P14: =N14/Data!G30*100 -> 52591240.87 | Q14: =P14*Data!B30/100 -> 51171278.97 | R14: =Q14-N14 -> 35078358.81 | S14: 1419961.898 | T14: 0.02699996948 | V14: 535.135 | W14: =V14*$W$2*Data!$B$3*Data!$B$4 -> 5033613.594 | X14: =S14-W14 -> -3613651.695 | Y14: -0.06871204474 | AA14: 17539179.41 | AB14: 17539179.41 | AC14: 33.3500011 | AE14: =100-AC14 -> 66.6499989 | AF14: =W14/(1-AE14/100) -> 15093293.64 | AG14: 28.6992537 | AI14: 100 | AJ14: 66.70000219 | AK14: 33.3500011 | AL14: =AJ14-AK14 -> 33.3500011 | AM14: 30.60000086 | AN14: =AI14-AK14-AL14-AM14 -> 2.699996948 | AP14: 31.27843514 | AR14: =AS14*AT14 -> 100 | AS14: =$AX$5 -> 1 | AT14: =100*$AX$6 -> 100 | AU14: =AW14+AX14 -> 66.70000219 | AV14: =AL14/AI14*$AX$8 -> 0.333500011 | AW14: =AK14*$AX$7 -> 33.3500011 | AX14: =AV14*AT14 -> 33.3500011 | AY14: =AM14*(1+AP14/100) -> 40.17120228 | AZ14: =AR14-AW14-AX14-AY14 -> -6.871204474 | BD14: With LW | BE14: =INDEX(AR13:AR26,$BG$6) -> 100 | BF14: =INDEX(AW13:AW26,$BG$6) -> 29.84999967 | BG14: =INDEX(AX13:AX26,$BG$6) -> 29.84999967 | BH14: 28.01640978 | BI14: 12.28359089
A15: =Data!A10 -> Tourism | B15: =Data!$C10*Data!E10/100 -> 216.6 | C15: =Data!$C10*Data!F10/100 -> 150.48 | D15: =Data!$C10*Data!G10/100 -> 105.45 | E15: =Data!$C10*Data!H10/100 -> 38.76 | F15: =Data!$C10*Data!I10/100 -> 58.71 | G15: =Data!$C10*Data!J10/100 -> 570 | I15: =B15*Data!E$4*Data!$B$3*Data!$B$4 -> 4785506.25 | J15: =C15*Data!F$4*Data!$B$3*Data!$B$4 -> 4740120 | K15: =D15*Data!G$4*Data!$B$3*Data!$B$4 -> 4244362.5 | L15: =E15*Data!H$4*Data!$B$3*Data!$B$4 -> 1899240 | M15: =F15*Data!I$4*Data!$B$3*Data!$B$4 -> 4109700 | N15: 19778928.75 | P15: =N15/Data!G31*100 -> 77869800.86 | Q15: =P15*Data!B31/100 -> 66267199.34 | R15: 46488270.59 | S15: 11602601.52 | T15: 0.1490000153 | V15: 216.6 | W15: =V15*$W$2*Data!$B$3*Data!$B$4 -> 2037393.75 | X15: 9565207.766 | Y15: 0.1228359089 | AA15: 23244135.3 | AB15: 23244135.3 | AC15: 29.84999967 | AE15: 70.15000033 | AF15: 6825439.775 | AG15: 8.76519485 | AI15: 100 | AJ15: 59.69999933 | AK15: 29.84999967 | AL15: 29.84999967 | AM15: 25.39999914 | AN15: 14.90000153 | AP15: 10.30082961 | AR15: 100 | AS15: 1 | AT15: 100 | AU15: 59.69999933 | AV15: 0.2984999967 | AW15: 29.84999967 | AX15: 29.84999967 | AY15: 28.01640978 | AZ15: 12.28359089
A16: =Data!A11 -> Prof, Law & Government | B16: =Data!$C11*Data!E11/100 -> 10.81 | C16: =Data!$C11*Data!F11/100 -> 9.4 | D16: =Data!$C11*Data!G11/100 -> 163.56 | E16: =Data!$C11*Data!H11/100 -> 133.95 | F16: =Data!$C11*Data!I11/100 -> 152.75 | G16: =Data!$C11*Data!J11/100 -> 470.47 | I16: =B16*Data!E$4*Data!$B$3*Data!$B$4 -> 238833.4375 | J16: =C16*Data!F$4*Data!$B$3*Data!$B$4 -> 296100 | K16: =D16*Data!G$4*Data!$B$3*Data!$B$4 -> 6583290 | L16: =E16*Data!H$4*Data!$B$3*Data!$B$4 -> 6563550 | M16: =F16*Data!I$4*Data!$B$3*Data!$B$4 -> 10692500 | N16: 24374273.44 | P16: =N16/Data!G32*100 -> 79395025.51 | Q16: =P16*Data!B32/100 -> 55417730.23 | R16: 31043456.79 | S16: 23977295.28 | T16: 0.3019999695 | V16: 10.81 | W16: =V16*$W$2*Data!$B$3*Data!$B$4 -> 101681.5625 | X16: 23875613.72 | Y16: 0.300719265 | AA16: 15521728.4 | AB16: 15521728.4 | AC16: 19.55000114 | AE16: 80.44999886 | AF16: 520110.2637 | AG16: 0.6550917521 | AI16: 100 | AJ16: 39.10000229 | AK16: 19.55000114 | AL16: 19.55000114 | AM16: 30.70000076 | AN16: 30.19999695 | AP16: 0.417167563 | AR16: 100 | AS16: 1 | AT16: 100 | AU16: 39.10000229 | AV16: 0.1955000114 | AW16: 19.55000114 | AX16: 19.55000114 | AY16: 30.82807121 | AZ16: 30.0719265
A17: =Data!A12 -> Health and Social Services | B17: =Data!$C12*Data!E12/100 -> 40.5 | C17: =Data!$C12*Data!F12/100 -> 84.15 | D17: =Data!$C12*Data!G12/100 -> 162 | E17: =Data!$C12*Data!H12/100 -> 49.95 | F17: =Data!$C12*Data!I12/100 -> 113.85 | G17: =Data!$C12*Data!J12/100 -> 450.45 | I17: =B17*Data!E$4*Data!$B$3*Data!$B$4 -> 894796.875 | J17: =C17*Data!F$4*Data!$B$3*Data!$B$4 -> 2650725 | K17: =D17*Data!G$4*Data!$B$3*Data!$B$4 -> 6520500 | L17: =E17*Data!H$4*Data!$B$3*Data!$B$4 -> 2447550 | M17: =F17*Data!I$4*Data!$B$3*Data!$B$4 -> 7969500 | N17: 20483071.88 | P17: =N17/Data!G33*100 -> 60961523.61 | Q17: =P17*Data!B33/100 -> 39320182.73 | R17: 18837110.85 | S17: 21641340.88 | T17: 0.355 | V17: 40.5 | W17: =V17*$W$2*Data!$B$3*Data!$B$4 -> 380953.125 | X17: 21260387.76 | Y17: 0.3487509251 | AA17: 9418555.427 | AB17: 9418555.427 | AC17: 15.45000005 | AE17: 84.54999995 | AF17: 2465716.012 | AG17: 4.044708639 | AI17: 100 | AJ17: 30.9000001 | AK17: 15.45000005 | AL17: 15.45000005 | AM17: 33.5999999 | AN17: 35.5 | AP17: 1.859843715 | AR17: 100 | AS17: 1 | AT17: 100 | AU17: 30.9000001 | AV17: 0.1545000005 | AW17: 15.45000005 | AX17: 15.45000005 | AY17: 34.22490739 | AZ17: 34.87509251
A18: =Data!A13 -> Transport | B18: =Data!$C13*Data!E13/100 -> 15.54 | C18: =Data!$C13*Data!F13/100 -> 4.62 | D18: =Data!$C13*Data!G13/100 -> 12.6 | E18: =Data!$C13*Data!H13/100 -> 112.14 | F18: =Data!$C13*Data!I13/100 -> 275.52 | G18: =Data!$C13*Data!J13/100 -> 420.42 | I18: =B18*Data!E$4*Data!$B$3*Data!$B$4 -> 343336.875 | J18: =C18*Data!F$4*Data!$B$3*Data!$B$4 -> 145530 | K18: =D18*Data!G$4*Data!$B$3*Data!$B$4 -> 507150 | L18: =E18*Data!H$4*Data!$B$3*Data!$B$4 -> 5494860 | M18: =F18*Data!I$4*Data!$B$3*Data!$B$4 -> 19286400 | N18: 25777276.88 | P18: =N18/Data!G34*100 -> 125132412.6 | Q18: =P18*Data!B34/100 -> 107113343.3 | R18: 81336066.4 | S18: 18019069.32 | T18: 0.1440000153 | V18: 15.54 | W18: =V18*$W$2*Data!$B$3*Data!$B$4 -> 146173.125 | X18: 17872896.2 | Y18: 0.1428318677 | AA18: 40668033.2 | AB18: 40668033.2 | AC18: 32.49999928 | AE18: 67.50000072 | AF18: 449763.4714 | AG18: 0.3594300326 | AI18: 100 | AJ18: 64.99999857 | AK18: 32.49999928 | AL18: 32.49999928 | AM18: 20.5999999 | AN18: 14.40000153 | AP18: 0.5670619349 | AR18: 100 | AS18: 1 | AT18: 100 | AU18: 64.99999857 | AV18: 0.3249999928 | AW18: 32.49999928 | AX18: 32.49999928 | AY18: 20.71681466 | AZ18: 14.28318677
A19: =Data!A14 -> Retail | B19: =Data!$C14*Data!E14/100 -> 196.18 | C19: =Data!$C14*Data!F14/100 -> 44.88 | D19: =Data!$C14*Data!G14/100 -> 26.18 | E19: =Data!$C14*Data!H14/100 -> 43.18 | F19: =Data!$C14*Data!I14/100 -> 29.24 | G19: =Data!$C14*Data!J14/100 -> 339.66 | I19: =B19*Data!E$4*Data!$B$3*Data!$B$4 -> 4334351.875 | J19: =C19*Data!F$4*Data!$B$3*Data!$B$4 -> 1413720 | K19: =D19*Data!G$4*Data!$B$3*Data!$B$4 -> 1053745 | L19: =E19*Data!H$4*Data!$B$3*Data!$B$4 -> 2115820 | M19: =F19*Data!I$4*Data!$B$3*Data!$B$4 -> 2046800 | N19: 10964436.88 | P19: =N19/Data!G35*100 -> 68958724.14 | Q19: =P19*Data!B35/100 -> 65717666.21 | R19: 54753229.33 | S19: 3241057.93 | T19: 0.04699996948 | V19: 196.18 | W19: =V19*$W$2*Data!$B$3*Data!$B$4 -> 1845318.125 | X19: 1395739.805 | Y19: 0.02024022083 | AA19: 27376614.67 | AB19: 27376614.67 | AC19: 39.70000172 | AE19: 60.29999828 | AF19: 4648156.285 | AG19: 6.740490552 | AI19: 100 | AJ19: 79.40000343 | AK19: 39.70000172 | AL19: 39.70000172 | AM19: 15.89999962 | AN19: 4.699996948 | AP19: 16.830031 | AR19: 100 | AS19: 1 | AT19: 100 | AU19: 79.40000343 | AV19: 0.3970000172 | AW19: 39.70000172 | AX19: 39.70000172 | AY19: 18.57597448 | AZ19: 2.024022083 | BD19: LW | BE19: Total | BF19: Total | BG19: Total | BH19: Revenue | BI19: Profit
A20: =Data!A15 -> Accommodation | B20: =Data!$C15*Data!E15/100 -> 170.51 | C20: =Data!$C15*Data!F15/100 -> 90.27 | D20: =Data!$C15*Data!G15/100 -> 28.025 | E20: =Data!$C15*Data!H15/100 -> 0 | F20: =Data!$C15*Data!I15/100 -> 6.195 | G20: =Data!$C15*Data!J15/100 -> 295 | I20: =B20*Data!E$4*Data!$B$3*Data!$B$4 -> 3767205.312 | J20: =C20*Data!F$4*Data!$B$3*Data!$B$4 -> 2843505 | K20: =D20*Data!G$4*Data!$B$3*Data!$B$4 -> 1128006.25 | L20: =E20*Data!H$4*Data!$B$3*Data!$B$4 -> 0 | M20: =F20*Data!I$4*Data!$B$3*Data!$B$4 -> 433650 | N20: 8172366.562 | P20: =N20/Data!G36*100 -> 32559230.07 | Q20: =P20*Data!B36/100 -> 29856812.99 | R20: 21684446.42 | S20: 2702417.09 | T20: 0.08300003052 | V20: 170.51 | W20: =V20*$W$2*Data!$B$3*Data!$B$4 -> 1603859.688 | X20: 1098557.402 | Y20: 0.03374027579 | AA20: 10842223.21 | AB20: 10842223.21 | AC20: 33.29999876 | AE20: 66.70000124 | AF20: 4816395.637 | AG20: 14.79271969 | AI20: 100 | AJ20: 66.59999752 | AK20: 33.29999876 | AL20: 33.29999876 | AM20: 25.09999943 | AN20: 8.300003052 | AP20: 19.62540074 | AR20: 100 | AS20: 1 | AT20: 100 | AU20: 66.59999752 | AV20: 0.3329999876 | AW20: 33.29999876 | AX20: 33.29999876 | AY20: 30.0259749 | AZ20: 3.374027579 | BD20: Increment | BE20: Inc. Cost | BF20: Revenue | BG20: Profit | BH20: Share | BI20: Share
A21: =Data!A16 -> Construction | B21: =Data!$C16*Data!E16/100 -> 7.92 | C21: =Data!$C16*Data!F16/100 -> 26.62 | D21: =Data!$C16*Data!G16/100 -> 59.62 | E21: =Data!$C16*Data!H16/100 -> 69.08 | F21: =Data!$C16*Data!I16/100 -> 56.54 | G21: =Data!$C16*Data!J16/100 -> 219.78 | I21: =B21*Data!E$4*Data!$B$3*Data!$B$4 -> 174982.5 | J21: =C21*Data!F$4*Data!$B$3*Data!$B$4 -> 838530 | K21: =D21*Data!G$4*Data!$B$3*Data!$B$4 -> 2399705 | L21: =E21*Data!H$4*Data!$B$3*Data!$B$4 -> 3384920 | M21: =F21*Data!I$4*Data!$B$3*Data!$B$4 -> 3957800 | N21: 10755937.5 | P21: =N21/Data!G37*100 -> 46969160.17 | Q21: =P21*Data!B37/100 -> 41379829.39 | R21: 30623891.89 | S21: 5589330.777 | T21: 0.1190000153 | V21: 7.92 | W21: =V21*$W$2*Data!$B$3*Data!$B$4 -> 74497.5 | X21: 5514833.277 | Y21: 0.1174139213 | AA21: 15311945.95 | AB21: 15311945.95 | AC21: 32.59999943 | AE21: 67.40000057 | AF21: 228519.9427 | AG21: 0.4865318899 | AI21: 100 | AJ21: 65.19999886 | AK21: 32.59999943 | AL21: 32.59999943 | AM21: 22.89999962 | AN21: 11.90000153 | AP21: 0.6926174497 | AR21: 100 | AS21: 1 | AT21: 100 | AU21: 65.19999886 | AV21: 0.3259999943 | AW21: 32.59999943 | AX21: 32.59999943 | AY21: 23.05860901 | AZ21: 11.74139213 | BD21: =X1 -> 2.6875 | BE21: =SUM(V$13:V$26)*Data!$B$3*Data!$B$4*BD21 -> 6369747.891 | BF21: =SUM($P$13:$P$26) -> 863008440.3 | BG21: =SUM($S$13:$S$26) -> 136024683.1 | BH21: =BE21/BF21 -> 0.007380863956 | BI21: =BE21/BG21 -> 0.04682788261
A22: =Data!A17 -> Education | B22: =Data!$C17*Data!E17/100 -> 0 | C22: =Data!$C17*Data!F17/100 -> 4.68 | D22: =Data!$C17*Data!G17/100 -> 61.425 | E22: =Data!$C17*Data!H17/100 -> 1.56 | F22: =Data!$C17*Data!I17/100 -> 127.53 | G22: =Data!$C17*Data!J17/100 -> 195.195 | I22: =B22*Data!E$4*Data!$B$3*Data!$B$4 -> 0 | J22: =C22*Data!F$4*Data!$B$3*Data!$B$4 -> 147420 | K22: =D22*Data!G$4*Data!$B$3*Data!$B$4 -> 2472356.25 | L22: =E22*Data!H$4*Data!$B$3*Data!$B$4 -> 76440 | M22: =F22*Data!I$4*Data!$B$3*Data!$B$4 -> 8927100 | N22: 11623316.25 | P22: =N22/Data!G38*100 -> 32108608.38 | Q22: =P22*Data!B38/100 -> 27035447.28 | R22: 15412131.03 | S22: 5073161.104 | T22: 0.1580000305 | V22: 0 | W22: =V22*$W$2*Data!$B$3*Data!$B$4 -> 0 | X22: 5073161.104 | Y22: 0.1580000305 | AA22: 7706065.514 | AB22: 7706065.514 | AC22: 23.99999845 | AE22: 76.00000155 | AF22: 0 | AG22: 0 | AI22: 100 | AJ22: 47.9999969 | AK22: 23.99999845 | AL22: 23.99999845 | AM22: 36.20000005 | AN22: 15.80000305 | AP22: 0 | AR22: 100 | AS22: 1 | AT22: 100 | AU22: 47.9999969 | AV22: 0.2399999845 | AW22: 23.99999845 | AX22: 23.99999845 | AY22: 36.20000005 | AZ22: 15.80000305 | BD22: =X2 -> 4.03125 | BE22: =SUM(V$13:V$26)*Data!$B$3*Data!$B$4*BD22 -> 9554621.836 | BF22: =SUM($P$13:$P$26) -> 863008440.3 | BG22: =SUM($S$13:$S$26) -> 136024683.1 | BH22: =BE22/BF22 -> 0.01107129593 | BI22: =BE22/BG22 -> 0.07024182391
A23: =Data!A18 -> Business Services | B23: =Data!$C18*Data!E18/100 -> 44.975 | C23: =Data!$C18*Data!F18/100 -> 15.4 | D23: =Data!$C18*Data!G18/100 -> 18.55 | E23: =Data!$C18*Data!H18/100 -> 16.975 | F23: =Data!$C18*Data!I18/100 -> 78.925 | G23: =Data!$C18*Data!J18/100 -> 174.825 | I23: =B23*Data!E$4*Data!$B$3*Data!$B$4 -> 993666.4062 | J23: =C23*Data!F$4*Data!$B$3*Data!$B$4 -> 485100 | K23: =D23*Data!G$4*Data!$B$3*Data!$B$4 -> 746637.5 | L23: =E23*Data!H$4*Data!$B$3*Data!$B$4 -> 831775 | M23: =F23*Data!I$4*Data!$B$3*Data!$B$4 -> 5524750 | N23: 8581928.906 | P23: =N23/Data!G39*100 -> 27594625.95 | Q23: =P23*Data!B39/100 -> 22351647.02 | R23: 13769718.11 | S23: 5242978.93 | T23: 0.19 | V23: 44.975 | W23: =V23*$W$2*Data!$B$3*Data!$B$4 -> 423046.0938 | X23: 4819932.836 | Y23: 0.1746692579 | AA23: 6884859.055 | AB23: 6884859.055 | AC23: 24.94999957 | AE23: 75.05000043 | AF23: 1695575.555 | AG23: 6.144586118 | AI23: 100 | AJ23: 49.89999914 | AK23: 24.94999957 | AL23: 24.94999957 | AM23: 31.10000086 | AN23: 19 | AP23: 4.929498932 | AR23: 100 | AS23: 1 | AT23: 100 | AU23: 49.89999914 | AV23: 0.2494999957 | AW23: 24.94999957 | AX23: 24.94999957 | AY23: 32.63307507 | AZ23: 17.46692579 | BD23: 5.375 | BE23: =SUM(V$13:V$26)*Data!$B$3*Data!$B$4*BD23 -> 12739495.78 | BF23: 863008440.3 | BG23: 136024683.1 | BH23: 0.01476172791 | BI23: 0.09365576522
A24: =Data!A19 -> Utilities | B24: =Data!$C19*Data!E19/100 -> 0 | C24: =Data!$C19*Data!F19/100 -> 17.03 | D24: =Data!$C19*Data!G19/100 -> 4.68 | E24: =Data!$C19*Data!H19/100 -> 9.23 | F24: =Data!$C19*Data!I19/100 -> 99.06 | G24: =Data!$C19*Data!J19/100 -> 130 | I24: =B24*Data!E$4*Data!$B$3*Data!$B$4 -> 0 | J24: =C24*Data!F$4*Data!$B$3*Data!$B$4 -> 536445 | K24: =D24*Data!G$4*Data!$B$3*Data!$B$4 -> 188370 | L24: =E24*Data!H$4*Data!$B$3*Data!$B$4 -> 452270 | M24: =F24*Data!I$4*Data!$B$3*Data!$B$4 -> 6934200 | N24: 8111285 | P24: =N24/Data!G40*100 -> 38442109.18 | Q24: =P24*Data!B40/100 -> 37711708.52 | R24: 29600423.52 | S24: 730400.661 | T24: 0.01900001526 | V24: 0 | W24: =V24*$W$2*Data!$B$3*Data!$B$4 -> 0 | X24: 730400.661 | Y24: 0.01900001526 | AA24: 14800211.76 | AB24: 14800211.76 | AC24: 38.49999928 | AE24: 61.50000072 | AF24: 0 | AG24: 0 | AI24: 100 | AJ24: 76.99999857 | AK24: 38.49999928 | AL24: 38.49999928 | AM24: 21.0999999 | AN24: 1.900001526 | AP24: 0 | AR24: 100 | AS24: 1 | AT24: 100 | AU24: 76.99999857 | AV24: 0.3849999928 | AW24: 38.49999928 | AX24: 38.49999928 | AY24: 21.0999999 | AZ24: 1.900001526 | BD24: 6.5625 | BE24: =SUM(V$13:V$26)*Data!$B$3*Data!$B$4*BD24 -> 15554035.55 | BF24: 863008440.3 | BG24: 136024683.1 | BH24: 0.01802303989 | BI24: 0.1143471552
A25: =Data!A20 -> Auto & Mechanical | B25: =Data!$C20*Data!E20/100 -> 10.595 | C25: =Data!$C20*Data!F20/100 -> 13.585 | D25: =Data!$C20*Data!G20/100 -> 16.64 | E25: =Data!$C20*Data!H20/100 -> 15.145 | F25: =Data!$C20*Data!I20/100 -> 9.1 | G25: =Data!$C20*Data!J20/100 -> 65.065 | I25: =B25*Data!E$4*Data!$B$3*Data!$B$4 -> 234083.2813 | J25: =C25*Data!F$4*Data!$B$3*Data!$B$4 -> 427927.5 | K25: =D25*Data!G$4*Data!$B$3*Data!$B$4 -> 669760 | L25: =E25*Data!H$4*Data!$B$3*Data!$B$4 -> 742105 | M25: =F25*Data!I$4*Data!$B$3*Data!$B$4 -> 637000 | N25: 2710875.781 | P25: =N25/Data!G41*100 -> 9579066.3 | Q25: =P25*Data!B41/100 -> 8419999.424 | R25: 5709123.643 | S25: 1159066.876 | T25: 0.1209999847 | V25: 10.595 | W25: =V25*$W$2*Data!$B$3*Data!$B$4 -> 99659.21875 | X25: 1059407.657 | Y25: 0.1105961295 | AA25: 2854561.821 | AB25: 2854561.821 | AC25: 29.80000067 | AE25: 70.19999933 | AF25: 334426.9011 | AG25: 3.491226499 | AI25: 100 | AJ25: 59.60000134 | AK25: 29.80000067 | AL25: 29.80000067 | AM25: 28.30000019 | AN25: 12.09999847 | AP25: 3.676273898 | AR25: 100 | AS25: 1 | AT25: 100 | AU25: 59.60000134 | AV25: 0.2980000067 | AW25: 29.80000067 | AX25: 29.80000067 | AY25: 29.34038571 | AZ25: 11.05961295 | BD25: 7.75 | BE25: =SUM(V$13:V$26)*Data!$B$3*Data!$B$4*BD25 -> 18368575.31 | BF25: 863008440.3 | BG25: 136024683.1 | BH25: 0.02128435187 | BI25: 0.1350385452
A26: =Data!A21 -> Personal Services | B26: =Data!$C21*Data!E21/100 -> 0 | C26: =Data!$C21*Data!F21/100 -> 10.485 | D26: =Data!$C21*Data!G21/100 -> 13.5 | E26: =Data!$C21*Data!H21/100 -> 1.485 | F26: =Data!$C21*Data!I21/100 -> 19.485 | G26: =Data!$C21*Data!J21/100 -> 44.955 | I26: =B26*Data!E$4*Data!$B$3*Data!$B$4 -> 0 | J26: =C26*Data!F$4*Data!$B$3*Data!$B$4 -> 330277.5 | K26: =D26*Data!G$4*Data!$B$3*Data!$B$4 -> 543375 | L26: =E26*Data!H$4*Data!$B$3*Data!$B$4 -> 72765 | M26: =F26*Data!I$4*Data!$B$3*Data!$B$4 -> 1363950 | N26: 2310367.5 | P26: =N26/Data!G42*100 -> 7130763.763 | Q26: =P26*Data!B42/100 -> 5932795.233 | R26: 3622427.733 | S26: 1197968.53 | T26: 0.1680000305 | V26: 0 | W26: =V26*$W$2*Data!$B$3*Data!$B$4 -> 0 | X26: 1197968.53 | Y26: 0.1680000305 | AA26: 1811213.867 | AB26: 1811213.867 | AC26: 25.39999819 | AE26: 74.60000181 | AF26: 0 | AG26: 0 | AI26: 100 | AJ26: 50.79999638 | AK26: 25.39999819 | AL26: 25.39999819 | AM26: 32.40000057 | AN26: 16.80000305 | AP26: 0 | AR26: 100 | AS26: 1 | AT26: 100 | AU26: 50.79999638 | AV26: 0.2539999819 | AW26: 25.39999819 | AX26: 25.39999819 | AY26: 32.40000057 | AZ26: 16.80000305
A27: =Data!A22 -> Agriculture
N28: =SUM(N13:N27) -> 217406565.5 | P28: =SUM(P13:P27) -> 863008440.3 | R28: =SUM(R13:R27) -> 509577191.7 | S28: =SUM(S13:S27) -> 136024683.1 | AB28: =SUM(AB13:AB27) -> 254788595.9
Z31: FC Share # | AA31: 1 | AB31: Variable | AC31: Variable | AE31: Revenue | AF31: VC | AH31: Revenue | AI31: Net Revenue | BG31: Total profit after multiplier effect
Z32: FC Share Val | AA32: =INDEX($AB$1:$AB$5,AA31) -> 0 | AB32: Cost | AC32: Cost | AD32: Revenue | AE32: Change | AF32: Change | AG32: VC | AH32: Net VC | AI32: Before | BG32: LW | BH32: FC Increment
Z33: Sector | AA33: Fixed | AB33: Net | AC33: Revenue | AD33: After | AE33: After | AF33: After | AG33: After | AH33: After | AI33: Labour | BG33: Increment | BH33: =AB1 -> 0 | BI33: =AB2 -> 0.25 | BJ33: =AB3 -> 0.5 | BK33: =AB4 -> 0.75 | BL33: =AB5 -> 1
Z34: Revenue | AA34: Cost | AB34: Labour | AC34: Share | AD34: Multiplier | AE34: Multiplier | AF34: Multiplier | AG34: Multiplier | AH34: Multiplier | AI34: Costs | BG34: =BD21 -> 2.6875 | BH34: =AI49-$N$28-BE21 -> 144367218 | BI34: =AI69-$N$28-BE21 -> 145004189.5 | BJ34: =AI89-$N$28-BE21 -> 145641161 | BK34: =AI109-$N$28-BE21 -> 146278132.5 | BL34: =AI129-$N$28-BE21 -> 146915104
Z35: =P13 -> 203716148.9 | AA35: =R13*$AA$32 -> 0 | AB35: =R13-AA35 -> 121618536.6 | AC35: =AB35/P13*100 -> 59.6999979 | AD35: =Z35*$AE$2 -> 207790471.8 | AE35: =AD35-Z35 -> 4074322.977 | AF35: =AC35*AE35/100*$AJ$2 -> 608092.683 | AG35: =AF35+AB35 -> 122226629.3 | AH35: =AD35-AG35 -> 85563842.56 | AI35: =AH35-AA35 -> 85563842.56 | BG35: =BD22 -> 4.03125 | BH35: =AI49-$N$28-BE22 -> 141182344.1 | BI35: =AI69-$N$28-BE22 -> 141819315.6 | BJ35: =AI89-$N$28-BE22 -> 142456287.1 | BK35: =AI109-$N$28-BE22 -> 143093258.5 | BL35: =AI129-$N$28-BE22 -> 143730230
Z36: 52591240.87 | AA36: 0 | AB36: 35078358.81 | AC36: 66.70000219 | AD36: =Z36*$AE$2 -> 53643065.68 | AE36: =AD36-Z36 -> 1051824.817 | AF36: 175391.7941 | AG36: =AF36+AB36 -> 35253750.6 | AH36: =AD36-AG36 -> 18389315.08 | AI36: =AH36-AA36 -> 18389315.08 | BG36: =BD23 -> 5.375 | BH36: =AI49-$N$28-BE23 -> 137997470.1 | BI36: =AI69-$N$28-BE23 -> 138634441.6 | BJ36: =AI89-$N$28-BE23 -> 139271413.1 | BK36: =AI109-$N$28-BE23 -> 139908384.6 | BL36: =AI129-$N$28-BE23 -> 140545356.1
Z37: 77869800.86 | AA37: 0 | AB37: 46488270.59 | AC37: 59.69999933 | AD37: 79427196.88 | AE37: 1557396.017 | AF37: 232441.353 | AG37: 46720711.95 | AH37: 32706484.93 | AI37: 32706484.93 | BG37: =BD24 -> 6.5625 | BH37: =AI49-$N$28-BE24 -> 135182930.4 | BI37: =AI69-$N$28-BE24 -> 135819901.9 | BJ37: =AI89-$N$28-BE24 -> 136456873.3 | BK37: =AI109-$N$28-BE24 -> 137093844.8 | BL37: =AI129-$N$28-BE24 -> 137730816.3
Z38: 79395025.51 | AA38: 0 | AB38: 31043456.79 | AC38: 39.10000229 | AD38: 80982926.02 | AE38: 1587900.51 | AF38: 155217.284 | AG38: 31198674.08 | AH38: 49784251.95 | AI38: 49784251.95 | BG38: =BD25 -> 7.75 | BH38: =AI49-$N$28-BE25 -> 132368390.6 | BI38: =AI69-$N$28-BE25 -> 133005362.1 | BJ38: =AI89-$N$28-BE25 -> 133642333.6 | BK38: =AI109-$N$28-BE25 -> 134279305.1 | BL38: =AI129-$N$28-BE25 -> 134916276.6
Z39: 60961523.61 | AA39: 0 | AB39: 18837110.85 | AC39: 30.9000001 | AD39: 62180754.08 | AE39: 1219230.472 | AF39: 94185.55427 | AG39: 18931296.41 | AH39: 43249457.67 | AI39: 43249457.67
Z40: 125132412.6 | AA40: 0 | AB40: 81336066.4 | AC40: 64.99999857 | AD40: 127635060.8 | AE40: 2502648.252 | AF40: 406680.332 | AG40: 81742746.73 | AH40: 45892314.12 | AI40: 45892314.12
Z41: 68958724.14 | AA41: 0 | AB41: 54753229.33 | AC41: 79.40000343 | AD41: 70337898.62 | AE41: 1379174.483 | AF41: 273766.1467 | AG41: 55026995.48 | AH41: 15310903.14 | AI41: 15310903.14
Z42: 32559230.07 | AA42: 0 | AB42: 21684446.42 | AC42: 66.59999752 | AD42: 33210414.68 | AE42: 651184.6015 | AF42: 108422.2321 | AG42: 21792868.65 | AH42: 11417546.02 | AI42: 11417546.02 | BG42: Relative profit after multiplier effect
Z43: 46969160.17 | AA43: 0 | AB43: 30623891.89 | AC43: 65.19999886 | AD43: 47908543.37 | AE43: 939383.2034 | AF43: 153119.4595 | AG43: 30777011.35 | AH43: 17131532.02 | AI43: 17131532.02 | BG43: LW | BH43: FC Share of Nonlabour costs
Z44: 32108608.38 | AA44: 0 | AB44: 15412131.03 | AC44: 47.9999969 | AD44: 32750780.55 | AE44: 642172.1677 | AF44: 77060.65514 | AG44: 15489191.68 | AH44: 17261588.87 | AI44: 17261588.87 | BG44: Increment | BH44: =BH33 -> 0 | BI44: =BI33 -> 0.25 | BJ44: 0.5 | BK44: 0.75 | BL44: 1
Z45: 27594625.95 | AA45: 0 | AB45: 13769718.11 | AC45: 49.89999914 | AD45: 28146518.47 | AE45: 551892.5189 | AF45: 68848.59055 | AG45: 13838566.7 | AH45: 14307951.76 | AI45: 14307951.76 | BG45: =BG34 -> 2.6875 | BH45: =BH34/$S$28-1 -> 0.06133103763 | BI45: =BI34/$S$28-1 -> 0.06601380164 | BJ45: 0.07069656564 | BK45: 0.07537932965 | BL45: 0.08006209365
Z46: 38442109.18 | AA46: 0 | AB46: 29600423.52 | AC46: 76.99999857 | AD46: 39210951.36 | AE46: 768842.1836 | AF46: 148002.1176 | AG46: 29748425.64 | AH46: 9462525.727 | AI46: 9462525.727 | BG46: =BG35 -> 4.03125 | BH46: =BH35/$S$28-1 -> 0.03791709633 | BI46: 0.04259986033 | BJ46: 0.04728262434 | BK46: 0.05196538834 | BL46: 0.05664815235
Z47: 9579066.3 | AA47: 0 | AB47: 5709123.643 | AC47: 59.60000134 | AD47: 9770647.626 | AE47: 191581.326 | AF47: 28545.61821 | AG47: 5737669.261 | AH47: 4032978.365 | AI47: 4032978.365 | BG47: =BG36 -> 5.375 | BH47: 0.01450315502 | BI47: 0.01918591903 | BJ47: 0.02386868303 | BK47: 0.02855144704 | BL47: 0.03323421104
Z48: 7130763.763 | AA48: 0 | AB48: 3622427.733 | AC48: 50.79999638 | AD48: 7273379.038 | AE48: 142615.2753 | AF48: 18112.13867 | AG48: 3640539.872 | AH48: 3632839.166 | AI48: 3632839.166 | BG48: =BG37 -> 6.5625 | BH48: -0.006188234968 | BI48: -0.001505470963 | BJ48: 0.003177293042 | BK48: 0.007860057047 | BL48: 0.01254282105
AD49: =SUM(AD35:AD48) -> 880268609.1 | AG49: =SUM(AG35:AG48) -> 512125077.7 | AI49: =SUM(AI35:AI48) -> 368143531.4 | BG49: =BG38 -> 7.75 | BH49: -0.02687962496 | BI49: -0.02219686095 | BJ49: -0.01751409695 | BK49: -0.01283133294 | BL49: -0.008148568938
Z51: FC Share # | AA51: 2 | AB51: Variable | AC51: Variable | AE51: Revenue | AF51: VC | AI51: Revenue | BI51: Expenses Net | BJ51: Wages after LW | BO51: Profit after LW | BT51: Relative Profit after LW
Z52: FC Share Val | AA52: =INDEX($AB$1:$AB$5,AA51) -> 0.25 | AB52: Cost | AC52: Cost | AD52: Revenue | AE52: Change | AF52: Change | AG52: VC | AI52: Net VC | BH52: Revenue | BI52: Nonlabour Expense | BJ52: =BG45 -> 2.6875 | BK52: =BG46 -> 4.03125 | BL52: =BG47 -> 5.375 | BM52: =BG48 -> 6.5625 | BN52: =BG49 -> 7.75 | BO52: =BJ52 -> 2.6875 | BP52: =BK52 -> 4.03125 | BQ52: 5.375 | BR52: 6.5625 | BS52: 7.75 | BT52: =BO52 -> 2.6875 | BU52: =BP52 -> 4.03125 | BV52: 5.375 | BW52: 6.5625 | BX52: 7.75
Z53: Sector | AA53: Fixed | AB53: Net | AC53: Revenue | AD53: After | AE53: After | AF53: After | AG53: After | AI53: After | BF53: Forestry | BH53: =P13 -> 203716148.9 | BI53: =R13 -> 121618536.6 | BJ53: =$N13+$V13*Data!$B$3*Data!$B$4*BJ$52 -> 48166230 | BK53: =$N13+$V13*Data!$B$3*Data!$B$4*BK$52 -> 48414555 | BL53: =$N13+$V13*Data!$B$3*Data!$B$4*BL$52 -> 48662880 | BM53: =$N13+$V13*Data!$B$3*Data!$B$4*BM$52 -> 48882330 | BN53: =$N13+$V13*Data!$B$3*Data!$B$4*BN$52 -> 49101780 | BO53: =$BH53-$BI53-BJ53 -> 33931382.27 | BP53: =$BH53-$BI53-BK53 -> 33683057.27 | BQ53: 33434732.27 | BR53: 33215282.27 | BS53: 32995832.27 | BT53: =BO53/$S13-1 -> -0.01442574458 | BU53: =BP53/$S13-1 -> -0.02163861688 | BV53: -0.02885148917 | BW53: -0.03522565538 | BX53: -0.04159982159
Z54: Revenue | AA54: Cost | AB54: Labour | AC54: Share | AD54: Multiplier | AE54: Multiplier | AF54: Multiplier | AG54: Multiplier | AI54: Multiplier | BF54: Food & Beverages | BH54: =P14 -> 52591240.87 | BI54: =R14 -> 35078358.81 | BJ54: =$N14+$V14*Data!$B$3*Data!$B$4*BJ$52 -> 18609726.95 | BK54: =$N14+$V14*Data!$B$3*Data!$B$4*BK$52 -> 19868130.35 | BL54: =$N14+$V14*Data!$B$3*Data!$B$4*BL$52 -> 21126533.75 | BM54: =$N14+$V14*Data!$B$3*Data!$B$4*BM$52 -> 22238611.17 | BN54: =$N14+$V14*Data!$B$3*Data!$B$4*BN$52 -> 23350688.59 | BO54: =$BH54-$BI54-BJ54 -> -1096844.898 | BP54: -2355248.297 | BQ54: -3613651.695 | BR54: -4725729.117 | BS54: -5837806.539 | BT54: =BO54/$S14-1 -> -1.772446711 | BU54: -2.658670067 | BV54: -3.544893422 | BW54: -4.328067551 | BX54: -5.111241679
Z55: =Z35 -> 203716148.9 | AA55: =R13*$AA$52 -> 30404634.15 | AB55: =R13-AA55 -> 91213902.45 | AC55: =AB55/P13*100 -> 44.77499843 | AD55: =Z55*$AE$2 -> 207790471.8 | AE55: =AD55-Z55 -> 4074322.977 | AF55: =AC55*AE55/100*$AJ$2 -> 456069.5122 | AG55: =AF55+AB55 -> 91669971.96 | AH55: =AD55-AG55 -> 116120499.9 | AI55: =AH55-AA55 -> 85715865.73 | BF55: Tourism | BH55: 77869800.86 | BI55: 46488270.59 | BJ55: =$N15+$V15*Data!$B$3*Data!$B$4*BJ$52 -> 20797625.62 | BK55: =$N15+$V15*Data!$B$3*Data!$B$4*BK$52 -> 21306974.06 | BL55: =$N15+$V15*Data!$B$3*Data!$B$4*BL$52 -> 21816322.5 | BM55: =$N15+$V15*Data!$B$3*Data!$B$4*BM$52 -> 22266444.38 | BN55: =$N15+$V15*Data!$B$3*Data!$B$4*BN$52 -> 22716566.25 | BO55: 10583904.64 | BP55: 10074556.2 | BQ55: 9565207.766 | BR55: 9115085.891 | BS55: 8664964.016 | BT55: -0.08779900556 | BU55: -0.1316985083 | BV55: -0.1755980111 | BW55: -0.2143929205 | BX55: -0.25318783
Z56: =Z36 -> 52591240.87 | AA56: 8769589.703 | AB56: 26308769.11 | AC56: 50.02500165 | AD56: =Z56*$AE$2 -> 53643065.68 | AE56: =AD56-Z56 -> 1051824.817 | AF56: =AC56*AE56/100*$AJ$2 -> 131543.8455 | AG56: =AF56+AB56 -> 26440312.95 | AH56: =AD56-AG56 -> 27202752.73 | AI56: =AH56-AA56 -> 18433163.03 | BF56: Prof, Law & Government | BH56: 79395025.51 | BI56: 31043456.79 | BJ56: =$N16+$V16*Data!$B$3*Data!$B$4*BJ$52 -> 24425114.22 | BK56: =$N16+$V16*Data!$B$3*Data!$B$4*BK$52 -> 24450534.61 | BL56: =$N16+$V16*Data!$B$3*Data!$B$4*BL$52 -> 24475955 | BM56: =$N16+$V16*Data!$B$3*Data!$B$4*BM$52 -> 24498419.53 | BN56: =$N16+$V16*Data!$B$3*Data!$B$4*BN$52 -> 24520884.06 | BO56: 23926454.5 | BP56: 23901034.11 | BQ56: 23875613.72 | BR56: 23853149.19 | BS56: 23830684.66 | BT56: -0.002120371821 | BU56: -0.003180557731 | BV56: -0.004240743641 | BW56: -0.00517765212 | BX56: -0.006114560599
Z57: 77869800.86 | AA57: 11622067.65 | AB57: 34866202.95 | AC57: 44.7749995 | AD57: 79427196.88 | AE57: 1557396.017 | AF57: 174331.0147 | AG57: 35040533.96 | AH57: 44386662.92 | AI57: 32764595.27 | BF57: Health and Social Services | BH57: 60961523.61 | BI57: 18837110.85 | BJ57: =$N17+$V17*Data!$B$3*Data!$B$4*BJ$52 -> 20673548.44 | BK57: =$N17+$V17*Data!$B$3*Data!$B$4*BK$52 -> 20768786.72 | BL57: =$N17+$V17*Data!$B$3*Data!$B$4*BL$52 -> 20864025 | BM57: =$N17+$V17*Data!$B$3*Data!$B$4*BM$52 -> 20948189.06 | BN57: =$N17+$V17*Data!$B$3*Data!$B$4*BN$52 -> 21032353.12 | BO57: 21450864.32 | BP57: 21355626.04 | BQ57: 21260387.76 | BR57: 21176223.69 | BS57: 21092059.63 | BT57: -0.008801513896 | BU57: -0.01320227084 | BV57: -0.01760302779 | BW57: -0.02149206882 | BX57: -0.02538110984
Z58: 79395025.51 | AA58: 7760864.198 | AB58: 23282592.59 | AC58: 29.32500172 | AD58: 80982926.02 | AE58: 1587900.51 | AF58: 116412.963 | AG58: 23399005.56 | AH58: 57583920.46 | AI58: 49823056.27 | BF58: Transport | BH58: 125132412.6 | BI58: 81336066.4 | BJ58: =$N18+$V18*Data!$B$3*Data!$B$4*BJ$52 -> 25850363.44 | BK58: =$N18+$V18*Data!$B$3*Data!$B$4*BK$52 -> 25886906.72 | BL58: =$N18+$V18*Data!$B$3*Data!$B$4*BL$52 -> 25923450 | BM58: =$N18+$V18*Data!$B$3*Data!$B$4*BM$52 -> 25955744.06 | BN58: =$N18+$V18*Data!$B$3*Data!$B$4*BN$52 -> 25988038.12 | BO58: 17945982.76 | BP58: 17909439.48 | BQ58: 17872896.2 | BR58: 17840602.14 | BS58: 17808308.07 | BT58: -0.004056067558 | BU58: -0.006084101337 | BV58: -0.008112135115 | BW58: -0.009904351013 | BX58: -0.01169656691
Z59: 60961523.61 | AA59: 4709277.713 | AB59: 14127833.14 | AC59: 23.17500007 | AD59: 62180754.08 | AE59: 1219230.472 | AF59: 70639.1657 | AG59: 14198472.31 | AH59: 47982281.78 | AI59: 43273004.06 | BF59: Retail | BH59: 68958724.14 | BI59: 54753229.33 | BJ59: =$N19+$V19*Data!$B$3*Data!$B$4*BJ$52 -> 11887095.94 | BK59: =$N19+$V19*Data!$B$3*Data!$B$4*BK$52 -> 12348425.47 | BL59: =$N19+$V19*Data!$B$3*Data!$B$4*BL$52 -> 12809755 | BM59: =$N19+$V19*Data!$B$3*Data!$B$4*BM$52 -> 13217441.56 | BN59: =$N19+$V19*Data!$B$3*Data!$B$4*BN$52 -> 13625128.12 | BO59: 2318398.868 | BP59: 1857069.336 | BQ59: 1395739.805 | BR59: 988053.2426 | BS59: 580366.6801 | BT59: -0.2846783619 | BU59: -0.4270175429 | BV59: -0.5693567239 | BW59: -0.6951448373 | BX59: -0.8209329507
Z60: 125132412.6 | AA60: 20334016.6 | AB60: 61002049.8 | AC60: 48.74999893 | AD60: 127635060.8 | AE60: 2502648.252 | AF60: 305010.249 | AG60: 61307060.05 | AH60: 66328000.8 | AI60: 45993984.2 | BF60: Accommodation | BH60: 32559230.07 | BI60: 21684446.42 | BJ60: =$N20+$V20*Data!$B$3*Data!$B$4*BJ$52 -> 8974296.406 | BK60: =$N20+$V20*Data!$B$3*Data!$B$4*BK$52 -> 9375261.328 | BL60: =$N20+$V20*Data!$B$3*Data!$B$4*BL$52 -> 9776226.25 | BM60: =$N20+$V20*Data!$B$3*Data!$B$4*BM$52 -> 10130567.34 | BN60: =$N20+$V20*Data!$B$3*Data!$B$4*BN$52 -> 10484908.44 | BO60: 1900487.246 | BP60: 1499522.324 | BQ60: 1098557.402 | BR60: 744216.3086 | BS60: 389875.2148 | BT60: -0.2967454013 | BU60: -0.4451181019 | BV60: -0.5934908026 | BW60: -0.7246108636 | BX60: -0.8557309246
Z61: 68958724.14 | AA61: 13688307.33 | AB61: 41064922 | AC61: 59.55000257 | AD61: 70337898.62 | AE61: 1379174.483 | AF61: 205324.61 | AG61: 41270246.61 | AH61: 29067652.01 | AI61: 15379344.68 | BF61: Construction | BH61: 46969160.17 | BI61: 30623891.89 | BJ61: =$N21+$V21*Data!$B$3*Data!$B$4*BJ$52 -> 10793186.25 | BK61: =$N21+$V21*Data!$B$3*Data!$B$4*BK$52 -> 10811810.62 | BL61: =$N21+$V21*Data!$B$3*Data!$B$4*BL$52 -> 10830435 | BM61: =$N21+$V21*Data!$B$3*Data!$B$4*BM$52 -> 10846893.75 | BN61: =$N21+$V21*Data!$B$3*Data!$B$4*BN$52 -> 10863352.5 | BO61: 5552082.027 | BP61: 5533457.652 | BQ61: 5514833.277 | BR61: 5498374.527 | BS61: 5481915.777 | BT61: -0.006664259369 | BU61: -0.009996389054 | BV61: -0.01332851874 | BW61: -0.01627319148 | BX61: -0.01921786423
Z62: 32559230.07 | AA62: 5421111.606 | AB62: 16263334.82 | AC62: 49.94999814 | AD62: 33210414.68 | AE62: 651184.6015 | AF62: 81316.67408 | AG62: 16344651.49 | AH62: 16865763.19 | AI62: 11444651.58 | BF62: Education | BH62: 32108608.38 | BI62: 15412131.03 | BJ62: =$N22+$V22*Data!$B$3*Data!$B$4*BJ$52 -> 11623316.25 | BK62: =$N22+$V22*Data!$B$3*Data!$B$4*BK$52 -> 11623316.25 | BL62: =$N22+$V22*Data!$B$3*Data!$B$4*BL$52 -> 11623316.25 | BM62: =$N22+$V22*Data!$B$3*Data!$B$4*BM$52 -> 11623316.25 | BN62: =$N22+$V22*Data!$B$3*Data!$B$4*BN$52 -> 11623316.25 | BO62: 5073161.104 | BP62: 5073161.104 | BQ62: 5073161.104 | BR62: 5073161.104 | BS62: 5073161.104 | BT62: 0 | BU62: 0 | BV62: 0 | BW62: 0 | BX62: 0
Z63: 46969160.17 | AA63: 7655972.974 | AB63: 22967918.92 | AC63: 48.89999914 | AD63: 47908543.37 | AE63: 939383.2034 | AF63: 114839.5946 | AG63: 23082758.52 | AH63: 24825784.86 | AI63: 17169811.89 | BF63: Business Services | BH63: 27594625.95 | BI63: 13769718.11 | BJ63: =$N23+$V23*Data!$B$3*Data!$B$4*BJ$52 -> 8793451.953 | BK63: =$N23+$V23*Data!$B$3*Data!$B$4*BK$52 -> 8899213.477 | BL63: =$N23+$V23*Data!$B$3*Data!$B$4*BL$52 -> 9004975 | BM63: =$N23+$V23*Data!$B$3*Data!$B$4*BM$52 -> 9098438.672 | BN63: =$N23+$V23*Data!$B$3*Data!$B$4*BN$52 -> 9191902.344 | BO63: 5031455.883 | BP63: 4925694.36 | BQ63: 4819932.836 | BR63: 4726469.164 | BS63: 4633005.492 | BT63: -0.04034405816 | BU63: -0.06051608724 | BV63: -0.08068811632 | BW63: -0.09851456062 | BX63: -0.1163410049
Z64: 32108608.38 | AA64: 3853032.757 | AB64: 11559098.27 | AC64: 35.99999768 | AD64: 32750780.55 | AE64: 642172.1677 | AF64: 57795.49136 | AG64: 11616893.76 | AH64: 21133886.79 | AI64: 17280854.03 | BF64: Utilities | BH64: 38442109.18 | BI64: 29600423.52 | BJ64: =$N24+$V24*Data!$B$3*Data!$B$4*BJ$52 -> 8111285 | BK64: =$N24+$V24*Data!$B$3*Data!$B$4*BK$52 -> 8111285 | BL64: =$N24+$V24*Data!$B$3*Data!$B$4*BL$52 -> 8111285 | BM64: =$N24+$V24*Data!$B$3*Data!$B$4*BM$52 -> 8111285 | BN64: =$N24+$V24*Data!$B$3*Data!$B$4*BN$52 -> 8111285 | BO64: 730400.661 | BP64: 730400.661 | BQ64: 730400.661 | BR64: 730400.661 | BS64: 730400.661 | BT64: 0 | BU64: 0 | BV64: 0 | BW64: 0 | BX64: 0
Z65: 27594625.95 | AA65: 3442429.528 | AB65: 10327288.58 | AC65: 37.42499936 | AD65: 28146518.47 | AE65: 551892.5189 | AF65: 51636.44291 | AG65: 10378925.03 | AH65: 17767593.44 | AI65: 14325163.91 | BF65: Auto & Mechanical | BH65: 9579066.3 | BI65: 5709123.643 | BJ65: =$N25+$V25*Data!$B$3*Data!$B$4*BJ$52 -> 2760705.391 | BK65: =$N25+$V25*Data!$B$3*Data!$B$4*BK$52 -> 2785620.195 | BL65: =$N25+$V25*Data!$B$3*Data!$B$4*BL$52 -> 2810535 | BM65: =$N25+$V25*Data!$B$3*Data!$B$4*BM$52 -> 2832552.734 | BN65: =$N25+$V25*Data!$B$3*Data!$B$4*BN$52 -> 2854570.469 | BO65: 1109237.267 | BP65: 1084322.462 | BQ65: 1059407.657 | BR65: 1037389.923 | BS65: 1015372.189 | BT65: -0.04299114262 | BU65: -0.06448671392 | BV65: -0.08598228523 | BW65: -0.1049783715 | BX65: -0.1239744578
Z66: 38442109.18 | AA66: 7400105.879 | AB66: 22200317.64 | AC66: 57.74999893 | AD66: 39210951.36 | AE66: 768842.1836 | AF66: 111001.5882 | AG66: 22311319.23 | AH66: 16899632.14 | AI66: 9499526.256 | BF66: Personal Services | BH66: 7130763.763 | BI66: 3622427.733 | BJ66: =$N26+$V26*Data!$B$3*Data!$B$4*BJ$52 -> 2310367.5 | BK66: =$N26+$V26*Data!$B$3*Data!$B$4*BK$52 -> 2310367.5 | BL66: =$N26+$V26*Data!$B$3*Data!$B$4*BL$52 -> 2310367.5 | BM66: =$N26+$V26*Data!$B$3*Data!$B$4*BM$52 -> 2310367.5 | BN66: =$N26+$V26*Data!$B$3*Data!$B$4*BN$52 -> 2310367.5 | BO66: 1197968.53 | BP66: 1197968.53 | BQ66: 1197968.53 | BR66: 1197968.53 | BS66: 1197968.53 | BT66: 0 | BU66: 0 | BV66: 0 | BW66: 0 | BX66: 0
Z67: 9579066.3 | AA67: 1427280.911 | AB67: 4281842.732 | AC67: 44.700001 | AD67: 9770647.626 | AE67: 191581.326 | AF67: 21409.21366 | AG67: 4303251.946 | AH67: 5467395.68 | AI67: 4040114.77
Z68: 7130763.763 | AA68: 905606.9333 | AB68: 2716820.8 | AC68: 38.09999728 | AD68: 7273379.038 | AE68: 142615.2753 | AF68: 13584.104 | AG68: 2730404.904 | AH68: 4542974.134 | AI68: 3637367.201
AD69: =SUM(AD55:AD68) -> 880268609.1 | AG69: =SUM(AG55:AG68) -> 384093808.3 | AI69: =SUM(AI55:AI68) -> 368780502.9
Z71: FC Share # | AA71: 3 | AB71: Variable | AC71: Variable | AE71: Revenue | AF71: VC | AI71: Revenue
Z72: FC Share Val | AA72: =INDEX($AB$1:$AB$5,AA71) -> 0.5 | AB72: Cost | AC72: Cost | AD72: Revenue | AE72: Change | AF72: Change | AG72: VC | AI72: Net VC
Z73: Sector | AA73: Fixed | AB73: Net | AC73: Revenue | AD73: After | AE73: After | AF73: After | AG73: After | AI73: After
Z74: Revenue | AA74: Cost | AB74: Labour | AC74: Share | AD74: Multiplier | AE74: Multiplier | AF74: Multiplier | AG74: Multiplier | AI74: Multiplier
Z75: =Z55 -> 203716148.9 | AA75: =R13*$AA$72 -> 60809268.3 | AB75: =R13-AA75 -> 60809268.3 | AC75: =AB75/P13*100 -> 29.84999895 | AD75: =Z75*$AE$2 -> 207790471.8 | AE75: =AD75-Z75 -> 4074322.977 | AF75: =AC75*AE75/100*$AJ$2 -> 304046.3415 | AG75: =AF75+AB75 -> 61113314.64 | AH75: =AD75-AG75 -> 146677157.2 | AI75: =AH75-AA75 -> 85867888.9
Z76: =Z56 -> 52591240.87 | AA76: 17539179.41 | AB76: 17539179.41 | AC76: 33.3500011 | AD76: =Z76*$AE$2 -> 53643065.68 | AE76: =AD76-Z76 -> 1051824.817 | AF76: =AC76*AE76/100*$AJ$2 -> 87695.89703 | AG76: =AF76+AB76 -> 17626875.3 | AH76: =AD76-AG76 -> 36016190.38 | AI76: =AH76-AA76 -> 18477010.97
Z77: 77869800.86 | AA77: 23244135.3 | AB77: 23244135.3 | AC77: 29.84999967 | AD77: 79427196.88 | AE77: 1557396.017 | AF77: 116220.6765 | AG77: 23360355.97 | AH77: 56066840.9 | AI77: 32822705.61
Z78: 79395025.51 | AA78: 15521728.4 | AB78: 15521728.4 | AC78: 19.55000114 | AD78: 80982926.02 | AE78: 1587900.51 | AF78: 77608.64198 | AG78: 15599337.04 | AH78: 65383588.98 | AI78: 49861860.59
Z79: 60961523.61 | AA79: 9418555.427 | AB79: 9418555.427 | AC79: 15.45000005 | AD79: 62180754.08 | AE79: 1219230.472 | AF79: 47092.77713 | AG79: 9465648.204 | AH79: 52715105.88 | AI79: 43296550.45
Z80: 125132412.6 | AA80: 40668033.2 | AB80: 40668033.2 | AC80: 32.49999928 | AD80: 127635060.8 | AE80: 2502648.252 | AF80: 203340.166 | AG80: 40871373.36 | AH80: 86763687.48 | AI80: 46095654.28
Z81: 68958724.14 | AA81: 27376614.67 | AB81: 27376614.67 | AC81: 39.70000172 | AD81: 70337898.62 | AE81: 1379174.483 | AF81: 136883.0733 | AG81: 27513497.74 | AH81: 42824400.88 | AI81: 15447786.21
Z82: 32559230.07 | AA82: 10842223.21 | AB82: 10842223.21 | AC82: 33.29999876 | AD82: 33210414.68 | AE82: 651184.6015 | AF82: 54211.11606 | AG82: 10896434.33 | AH82: 22313980.35 | AI82: 11471757.14
Z83: 46969160.17 | AA83: 15311945.95 | AB83: 15311945.95 | AC83: 32.59999943 | AD83: 47908543.37 | AE83: 939383.2034 | AF83: 76559.72974 | AG83: 15388505.68 | AH83: 32520037.7 | AI83: 17208091.75
Z84: 32108608.38 | AA84: 7706065.514 | AB84: 7706065.514 | AC84: 23.99999845 | AD84: 32750780.55 | AE84: 642172.1677 | AF84: 38530.32757 | AG84: 7744595.842 | AH84: 25006184.71 | AI84: 17300119.19
Z85: 27594625.95 | AA85: 6884859.055 | AB85: 6884859.055 | AC85: 24.94999957 | AD85: 28146518.47 | AE85: 551892.5189 | AF85: 34424.29528 | AG85: 6919283.351 | AH85: 21227235.12 | AI85: 14342376.06
Z86: 38442109.18 | AA86: 14800211.76 | AB86: 14800211.76 | AC86: 38.49999928 | AD86: 39210951.36 | AE86: 768842.1836 | AF86: 74001.05879 | AG86: 14874212.82 | AH86: 24336738.54 | AI86: 9536526.786
Z87: 9579066.3 | AA87: 2854561.821 | AB87: 2854561.821 | AC87: 29.80000067 | AD87: 9770647.626 | AE87: 191581.326 | AF87: 14272.80911 | AG87: 2868834.631 | AH87: 6901812.996 | AI87: 4047251.174
Z88: 7130763.763 | AA88: 1811213.867 | AB88: 1811213.867 | AC88: 25.39999819 | AD88: 7273379.038 | AE88: 142615.2753 | AF88: 9056.069333 | AG88: 1820269.936 | AH88: 5453109.102 | AI88: 3641895.236
AD89: =SUM(AD75:AD88) -> 880268609.1 | AG89: =SUM(AG75:AG88) -> 256062538.8 | AI89: =SUM(AI75:AI88) -> 369417474.4
Z91: FC Share # | AA91: 4 | AB91: Variable | AC91: Variable | AE91: Revenue | AF91: VC | AI91: Revenue
Z92: FC Share Val | AA92: =INDEX($AB$1:$AB$5,AA91) -> 0.75 | AB92: Cost | AC92: Cost | AD92: Revenue | AE92: Change | AF92: Change | AG92: VC | AI92: Net VC
Z93: Sector | AA93: Fixed | AB93: Net | AC93: Revenue | AD93: After | AE93: After | AF93: After | AG93: After | AI93: After
Z94: Revenue | AA94: Cost | AB94: Labour | AC94: Share | AD94: Multiplier | AE94: Multiplier | AF94: Multiplier | AG94: Multiplier | AI94: Multiplier
Z95: =Z75 -> 203716148.9 | AA95: =R13*$AA$92 -> 91213902.45 | AB95: =R13-AA95 -> 30404634.15 | AC95: =AB95/P13*100 -> 14.92499948 | AD95: =Z95*$AE$2 -> 207790471.8 | AE95: =AD95-Z95 -> 4074322.977 | AF95: =AC95*AE95/100*$AJ$2 -> 152023.1707 | AG95: =AF95+AB95 -> 30556657.32 | AH95: =AD95-AG95 -> 177233814.5 | AI95: =AH95-AA95 -> 86019912.07
Z96: =Z76 -> 52591240.87 | AA96: 26308769.11 | AB96: 8769589.703 | AC96: 16.67500055 | AD96: =Z96*$AE$2 -> 53643065.68 | AE96: =AD96-Z96 -> 1051824.817 | AF96: =AC96*AE96/100*$AJ$2 -> 43847.94851 | AG96: =AF96+AB96 -> 8813437.651 | AH96: =AD96-AG96 -> 44829628.03 | AI96: =AH96-AA96 -> 18520858.92
Z97: 77869800.86 | AA97: 34866202.95 | AB97: 11622067.65 | AC97: 14.92499983 | AD97: 79427196.88 | AE97: 1557396.017 | AF97: 58110.33824 | AG97: 11680177.99 | AH97: 67747018.89 | AI97: 32880815.95
Z98: 79395025.51 | AA98: 23282592.59 | AB98: 7760864.198 | AC98: 9.775000572 | AD98: 80982926.02 | AE98: 1587900.51 | AF98: 38804.32099 | AG98: 7799668.519 | AH98: 73183257.5 | AI98: 49900664.91
Z99: 60961523.61 | AA99: 14127833.14 | AB99: 4709277.713 | AC99: 7.725000024 | AD99: 62180754.08 | AE99: 1219230.472 | AF99: 23546.38857 | AG99: 4732824.102 | AH99: 57447929.98 | AI99: 43320096.84
Z100: 125132412.6 | AA100: 61002049.8 | AB100: 20334016.6 | AC100: 16.24999964 | AD100: 127635060.8 | AE100: 2502648.252 | AF100: 101670.083 | AG100: 20435686.68 | AH100: 107199374.2 | AI100: 46197324.37
Z101: 68958724.14 | AA101: 41064922 | AB101: 13688307.33 | AC101: 19.85000086 | AD101: 70337898.62 | AE101: 1379174.483 | AF101: 68441.53667 | AG101: 13756748.87 | AH101: 56581149.75 | AI101: 15516227.75
Z102: 32559230.07 | AA102: 16263334.82 | AB102: 5421111.606 | AC102: 16.64999938 | AD102: 33210414.68 | AE102: 651184.6015 | AF102: 27105.55803 | AG102: 5448217.164 | AH102: 27762197.51 | AI102: 11498862.7
Z103: 46969160.17 | AA103: 22967918.92 | AB103: 7655972.974 | AC103: 16.29999971 | AD103: 47908543.37 | AE103: 939383.2034 | AF103: 38279.86487 | AG103: 7694252.838 | AH103: 40214290.54 | AI103: 17246371.62
Z104: 32108608.38 | AA104: 11559098.27 | AB104: 3853032.757 | AC104: 11.99999923 | AD104: 32750780.55 | AE104: 642172.1677 | AF104: 19265.16379 | AG104: 3872297.921 | AH104: 28878482.63 | AI104: 17319384.36
Z105: 27594625.95 | AA105: 10327288.58 | AB105: 3442429.528 | AC105: 12.47499979 | AD105: 28146518.47 | AE105: 551892.5189 | AF105: 17212.14764 | AG105: 3459641.675 | AH105: 24686876.79 | AI105: 14359588.21
Z106: 38442109.18 | AA106: 22200317.64 | AB106: 7400105.879 | AC106: 19.24999964 | AD106: 39210951.36 | AE106: 768842.1836 | AF106: 37000.5294 | AG106: 7437106.409 | AH106: 31773844.95 | AI106: 9573527.315
Z107: 9579066.3 | AA107: 4281842.732 | AB107: 1427280.911 | AC107: 14.90000033 | AD107: 9770647.626 | AE107: 191581.326 | AF107: 7136.404554 | AG107: 1434417.315 | AH107: 8336230.311 | AI107: 4054387.579
Z108: 7130763.763 | AA108: 2716820.8 | AB108: 905606.9333 | AC108: 12.69999909 | AD108: 7273379.038 | AE108: 142615.2753 | AF108: 4528.034666 | AG108: 910134.968 | AH108: 6363244.07 | AI108: 3646423.27
AD109: =SUM(AD95:AD108) -> 880268609.1 | AG109: =SUM(AG95:AG108) -> 128031269.4 | AI109: =SUM(AI95:AI108) -> 370054445.8
Z111: FC Share # | AA111: 5 | AB111: Variable | AC111: Variable | AE111: Revenue | AF111: VC | AI111: Revenue
Z112: FC Share Val | AA112: =INDEX($AB$1:$AB$5,AA111) -> 1 | AB112: Cost | AC112: Cost | AD112: Revenue | AE112: Change | AF112: Change | AG112: VC | AI112: Net VC
Z113: Sector | AA113: Fixed | AB113: Net | AC113: Revenue | AD113: After | AE113: After | AF113: After | AG113: After | AI113: After
Z114: Revenue | AA114: Cost | AB114: Labour | AC114: Share | AD114: Multiplier | AE114: Multiplier | AF114: Multiplier | AG114: Multiplier | AI114: Multiplier
Z115: =Z95 -> 203716148.9 | AA115: =R13*$AA$112 -> 121618536.6 | AB115: =R13-AA115 -> 0 | AC115: =AB115/P13*100 -> 0 | AD115: =Z115*$AE$2 -> 207790471.8 | AE115: =AD115-Z115 -> 4074322.977 | AF115: =AC115*AE115/100*$AJ$2 -> 0 | AG115: =AF115+AB115 -> 0 | AH115: =AD115-AG115 -> 207790471.8 | AI115: =AH115-AA115 -> 86171935.24
Z116: =Z96 -> 52591240.87 | AA116: 35078358.81 | AB116: 0 | AC116: 0 | AD116: =Z116*$AE$2 -> 53643065.68 | AE116: =AD116-Z116 -> 1051824.817 | AF116: =AC116*AE116/100*$AJ$2 -> 0 | AG116: =AF116+AB116 -> 0 | AH116: =AD116-AG116 -> 53643065.68 | AI116: =AH116-AA116 -> 18564706.87
Z117: 77869800.86 | AA117: 46488270.59 | AB117: 0 | AC117: 0 | AD117: 79427196.88 | AE117: 1557396.017 | AF117: 0 | AG117: 0 | AH117: 79427196.88 | AI117: 32938926.28
Z118: 79395025.51 | AA118: 31043456.79 | AB118: 0 | AC118: 0 | AD118: 80982926.02 | AE118: 1587900.51 | AF118: 0 | AG118: 0 | AH118: 80982926.02 | AI118: 49939469.23
Z119: 60961523.61 | AA119: 18837110.85 | AB119: 0 | AC119: 0 | AD119: 62180754.08 | AE119: 1219230.472 | AF119: 0 | AG119: 0 | AH119: 62180754.08 | AI119: 43343643.23
Z120: 125132412.6 | AA120: 81336066.4 | AB120: 0 | AC120: 0 | AD120: 127635060.8 | AE120: 2502648.252 | AF120: 0 | AG120: 0 | AH120: 127635060.8 | AI120: 46298994.45
Z121: 68958724.14 | AA121: 54753229.33 | AB121: 0 | AC121: 0 | AD121: 70337898.62 | AE121: 1379174.483 | AF121: 0 | AG121: 0 | AH121: 70337898.62 | AI121: 15584669.29
Z122: 32559230.07 | AA122: 21684446.42 | AB122: 0 | AC122: 0 | AD122: 33210414.68 | AE122: 651184.6015 | AF122: 0 | AG122: 0 | AH122: 33210414.68 | AI122: 11525968.25
Z123: 46969160.17 | AA123: 30623891.89 | AB123: 0 | AC123: 0 | AD123: 47908543.37 | AE123: 939383.2034 | AF123: 0 | AG123: 0 | AH123: 47908543.37 | AI123: 17284651.48
Z124: 32108608.38 | AA124: 15412131.03 | AB124: 0 | AC124: 0 | AD124: 32750780.55 | AE124: 642172.1677 | AF124: 0 | AG124: 0 | AH124: 32750780.55 | AI124: 17338649.52
Z125: 27594625.95 | AA125: 13769718.11 | AB125: 0 | AC125: 0 | AD125: 28146518.47 | AE125: 551892.5189 | AF125: 0 | AG125: 0 | AH125: 28146518.47 | AI125: 14376800.36
Z126: 38442109.18 | AA126: 29600423.52 | AB126: 0 | AC126: 0 | AD126: 39210951.36 | AE126: 768842.1836 | AF126: 0 | AG126: 0 | AH126: 39210951.36 | AI126: 9610527.845
Z127: 9579066.3 | AA127: 5709123.643 | AB127: 0 | AC127: 0 | AD127: 9770647.626 | AE127: 191581.326 | AF127: 0 | AG127: 0 | AH127: 9770647.626 | AI127: 4061523.983
Z128: 7130763.763 | AA128: 3622427.733 | AB128: 0 | AC128: 0 | AD128: 7273379.038 | AE128: 142615.2753 | AF128: 0 | AG128: 0 | AH128: 7273379.038 | AI128: 3650951.305
AD129: =SUM(AD115:AD128) -> 880268609.1 | AG129: =SUM(AG115:AG128) -> 0 | AI129: =SUM(AI115:AI128) -> 370691417.3

Sheet Data
A1: Revelstoke Labour Market Impacts Model | E1: Wage Categories (Top category guess)
A2: Total employment | B2: 5000 | D2: Bottom | E2: 10.25 | F2: 16 | G2: 21 | H2: 26 | I2: 30
A3: Weekly hours worked | B3: 35 | D3: Top | E3: 15 | F3: 20 | G3: 25 | H3: 30 | I3: 50
A4: Weeks per year worked | B4: 50 | D4: Midpoint | E4: =AVERAGE(E2:E3) -> 12.625 | F4: =AVERAGE(F2:F3) -> 18 | G4: =AVERAGE(G2:G3) -> 23 | H4: =AVERAGE(H2:H3) -> 28 | I4: =AVERAGE(I2:I3) -> 40
B6: Labour | E6: Sector employment by wage category.
A7: Sectors | B7: Share | C7: Employment | E7: =CONCATENATE("$",FIXED(E2,2),"-",FIXED(E3,2)) -> $10.25-15.00 | F7: =CONCATENATE("$",FIXED(F2,2),"-",FIXED(F3,2)) -> $16.00-20.00 | G7: =CONCATENATE("$",FIXED(G2,2),"-",FIXED(G3,2)) -> $21.00-25.00 | H7: =CONCATENATE("$",FIXED(H2,2),"-",FIXED(H3,2)) -> $26.00-30.00 | I7: =CONCATENATE("$",FIXED(I2,2),"-",FIXED(I3,2)) -> $30.00-50.00 | J7: Total
A8: Forestry | B8: 19.2 | C8: 960 | E8: 11 | F8: 24.3 | G8: 12.8 | H8: 9.1 | I8: 42.8 | J8: =SUM(E8:I8) -> 100
A9: Food & Beverages | B9: 13.1 | C9: 655 | E9: 81.7 | F9: 13.5 | G9: 2.1 | H9: 1.9 | I9: 0.7 | J9: 99.9
A10: Tourism | B10: 11.4 | C10: 570 | E10: 38 | F10: 26.4 | G10: 18.5 | H10: 6.8 | I10: 10.3 | J10: 100
A11: Prof, Law & Government | B11: 9.4 | C11: 470 | E11: 2.3 | F11: 2 | G11: 34.8 | H11: 28.5 | I11: 32.5 | J11: 100.1
A12: Health and Social Services | B12: 9 | C12: 450 | E12: 9 | F12: 18.7 | G12: 36 | H12: 11.1 | I12: 25.3 | J12: 100.1
A13: Transport | B13: 8.4 | C13: 420 | E13: 3.7 | F13: 1.1 | G13: 3 | H13: 26.7 | I13: 65.6 | J13: 100.1
A14: Retail | B14: 6.8 | C14: 340 | E14: 57.7 | F14: 13.2 | G14: 7.7 | H14: 12.7 | I14: 8.6 | J14: 99.9
A15: Accommodation | B15: 5.9 | C15: 295 | E15: 57.8 | F15: 30.6 | G15: 9.5 | H15: 0 | I15: 2.1 | J15: 100
A16: Construction | B16: 4.4 | C16: 220 | E16: 3.6 | F16: 12.1 | G16: 27.1 | H16: 31.4 | I16: 25.7 | J16: 99.9
A17: Education | B17: 3.9 | C17: 195 | E17: 0 | F17: 2.4 | G17: 31.5 | H17: 0.8 | I17: 65.4 | J17: 100.1
A18: Business Services | B18: 3.5 | C18: 175 | E18: 25.7 | F18: 8.8 | G18: 10.6 | H18: 9.7 | I18: 45.1 | J18: 99.9
A19: Utilities | B19: 2.6 | C19: 130 | E19: 0 | F19: 13.1 | G19: 3.6 | H19: 7.1 | I19: 76.2 | J19: 100
A20: Auto & Mechanical | B20: 1.3 | C20: 65 | E20: 16.3 | F20: 20.9 | G20: 25.6 | H20: 23.3 | I20: 14 | J20: 100.1
A21: Personal Services | B21: 0.9 | C21: 45 | E21: 0 | F21: 23.3 | G21: 30 | H21: 3.3 | I21: 43.3 | J21: 99.9
A22: Agriculture | B22: 0.1 | C22: 5
B24: Statistics Canada Revenue Shares
E25: Cost | F25: Operating
E26: of Sales: | F26: Expenses: | G26: Aggregate
B27: Total | C27: Profit | D27: Gross | E27: Wages | F27: Labour & | G27: Labour
A28: Statistics Canada Industries Match | B28: Expenses | C28: Share | D28: Margin | E28: & Benefits | F28: Commissions | G28: Share
A29: NAICS 113 - Forestry and Logging | B29: 83.09999847 | C29: 16.89999962 | D29: 70.19999695 | E29: 7.199999809 | F29: 16.20000076 | G29: =F29+E29 -> 23.40000057
A30: NAICS 722 - Food Services and Drinking Places | B30: 97.30000305 | C30: 2.700000048 | D30: 54.90000153 | E30: 7.900000095 | F30: 22.70000076 | G30: 30.60000086
A31: NAICS 71 - Arts, Entertainment and Recreation | B31: 85.09999847 | C31: 14.89999962 | D31: 81.5 | E31: 3.599999905 | F31: 21.79999924 | G31: 25.39999914
A32: NAICS 54 - Professional, Scientific and Technical Services | B32: 69.80000305 | C32: 30.20000076 | D32: 85.30000305 | E32: 3.5 | F32: 27.20000076 | G32: 30.70000076
A33: NAICS 62 - Health Care and Social Assistance | B33: 64.5 | C33: 35.5 | D33: 94.59999847 | E33: 2.099999905 | F33: 31.5 | G33: 33.5999999
A34: NAICS 48-49 - Transportation and Warehousing | B34: 85.59999847 | C34: 14.39999962 | D34: 72.69999695 | E34: 5.599999905 | F34: 15 | G34: 20.5999999
A35: NAICS 44-45 - Retail Trade | B35: 95.30000305 | C35: 4.699999809 | D35: 36.90000153 | E35: 2 | F35: 13.89999962 | G35: 15.89999962
A36: NAICS 721 - Accommodation Services | B36: 91.69999695 | C36: 8.300000191 | D36: 78.19999695 | E36: 4.699999809 | F36: 20.39999962 | G36: 25.09999943
A37: NAICS 23 - Construction | B37: 88.09999847 | C37: 11.89999962 | D37: 43.90000153 | E37: 10.89999962 | F37: 12 | G37: 22.89999962
A38: NAICS 61 - Educational Services | B38: 84.19999695 | C38: 15.80000019 | D38: 85.30000305 | E38: 3.700000048 | F38: 32.5 | G38: 36.20000005
A39: NAICS 561 - Administrative and Support Services | B39: 81 | C39: 19 | D39: 66.09999847 | E39: 7.900000095 | F39: 23.20000076 | G39: 31.10000086
A40: NAICS 22 - Utilities | B40: 98.09999847 | C40: 1.899999976 | D40: 70.80000305 | E40: 6.900000095 | F40: 14.19999981 | G40: 21.0999999
A41: NAICS 811 - Repair and Maintenance | B41: 87.90000153 | C41: 12.10000038 | D41: 53.5 | E41: 11.19999981 | F41: 17.10000038 | G41: 28.30000019
A42: NAICS 812 - Personal and Laundry Services | B42: 83.19999695 | C42: 16.79999924 | D42: 76.90000153 | E42: 8.800000191 | F42: 23.60000038 | G42: 32.40000057
A43: NAICS 11 - Agriculture, Forestry, Fishing and Hunting | B43: 98.30000305 | C43: 1.700000048 | D43: 81.30000305 | E43: 4.5 | F43: 17.5 | G43: 22
A47: Revelstoke Labour Market Impacts Model | E47: Wage Categories (Top category guess)
A48: Total employment | B48: 5000 | D48: Bottom | E48: 10.25 | F48: 16 | G48: 21 | H48: 26 | I48: 30
A49: Weekly hours worked | B49: 35 | D49: Top | E49: 15 | F49: 20 | G49: 25 | H49: 30 | I49: 50
A50: Weeks per year worked | B50: 50 | D50: Midpoint | E50: =AVERAGE(E48:E49) -> 12.625 | F50: =AVERAGE(F48:F49) -> 18 | G50: =AVERAGE(G48:G49) -> 23 | H50: =AVERAGE(H48:H49) -> 28 | I50: =AVERAGE(I48:I49) -> 40
B52: Labour | E52: Sector employment by wage category.
A53: Sectors | B53: Share | C53: Employment | E53: =CONCATENATE("$",FIXED(E48,2),"-",FIXED(E49,2)) -> $10.25-15.00 | F53: =CONCATENATE("$",FIXED(F48,2),"-",FIXED(F49,2)) -> $16.00-20.00 | G53: =CONCATENATE("$",FIXED(G48,2),"-",FIXED(G49,2)) -> $21.00-25.00 | H53: =CONCATENATE("$",FIXED(H48,2),"-",FIXED(H49,2)) -> $26.00-30.00 | I53: =CONCATENATE("$",FIXED(I48,2),"-",FIXED(I49,2)) -> $30.00-50.00 | J53: Total
A54: Forestry | B54: 19.2 | C54: =B54*$B$2/100 -> 960 | E54: 11 | F54: 24.3 | G54: 12.8 | H54: 9.1 | I54: 42.8 | J54: =SUM(E54:I54) -> 100
A55: Food & Beverages | B55: 13.1 | C55: 655 | E55: 81.7 | F55: 13.5 | G55: 2.1 | H55: 1.9 | I55: 0.7 | J55: 99.9
A56: Tourism | B56: 11.4 | C56: 570 | E56: 38 | F56: 26.4 | G56: 18.5 | H56: 6.8 | I56: 10.3 | J56: 100
A57: Prof, Law & Government | B57: 9.4 | C57: 470 | E57: 2.3 | F57: 2 | G57: 34.8 | H57: 28.5 | I57: 32.5 | J57: 100.1
A58: Health and Social Services | B58: 9 | C58: 450 | E58: 9 | F58: 18.7 | G58: 36 | H58: 11.1 | I58: 25.3 | J58: 100.1
A59: Transport | B59: 8.4 | C59: 420 | E59: 3.7 | F59: 1.1 | G59: 3 | H59: 26.7 | I59: 65.6 | J59: 100.1
A60: Retail | B60: 6.8 | C60: 340 | E60: 57.7 | F60: 13.2 | G60: 7.7 | H60: 12.7 | I60: 8.6 | J60: 99.9
A61: Accommodation | B61: 5.9 | C61: 295 | E61: 57.8 | F61: 30.6 | G61: 9.5 | H61: 0 | I61: 2.1 | J61: 100
A62: Construction | B62: 4.4 | C62: 220 | E62: 3.6 | F62: 12.1 | G62: 27.1 | H62: 31.4 | I62: 25.7 | J62: 99.9
A63: Education | B63: 3.9 | C63: 195 | E63: 0 | F63: 2.4 | G63: 31.5 | H63: 0.8 | I63: 65.4 | J63: 100.1
A64: Business Services | B64: 3.5 | C64: 175 | E64: 25.7 | F64: 8.8 | G64: 10.6 | H64: 9.7 | I64: 45.1 | J64: 99.9
A65: Utilities | B65: 2.6 | C65: 130 | E65: 0 | F65: 13.1 | G65: 3.6 | H65: 7.1 | I65: 76.2 | J65: 100
A66: Auto & Mechanical | B66: 1.3 | C66: 65 | E66: 16.3 | F66: 20.9 | G66: 25.6 | H66: 23.3 | I66: 14 | J66: 100.1
A67: Personal Services | B67: 0.9 | C67: 45 | E67: 0 | F67: 23.3 | G67: 30 | H67: 3.3 | I67: 43.3 | J67: 99.9
A68: Agriculture | B68: 0.1 | C68: 5
B70: Statistics Canada Revenue Shares
E71: Cost | F71: Operating
E72: of Sales: | F72: Expenses: | G72: Aggregate
B73: Total | C73: Profit | D73: Gross | E73: Wages | F73: Labour & | G73: Labour
A74: Statistics Canada Industries Match | B74: Expenses | C74: Share | D74: Margin | E74: & Benefits | F74: Commissions | G74: Share
A75: NAICS 113 - Forestry and Logging | B75: 83.09999847 | C75: 16.89999962 | D75: 70.19999695 | E75: 7.199999809 | F75: 16.20000076 | G75: =F75+E75 -> 23.40000057
A76: NAICS 722 - Food Services and Drinking Places | B76: 97.30000305 | C76: 2.700000048 | D76: 54.90000153 | E76: 7.900000095 | F76: 22.70000076 | G76: 30.60000086
A77: NAICS 71 - Arts, Entertainment and Recreation | B77: 85.09999847 | C77: 14.89999962 | D77: 81.5 | E77: 3.599999905 | F77: 21.79999924 | G77: 25.39999914
A78: NAICS 54 - Professional, Scientific and Technical Services | B78: 69.80000305 | C78: 30.20000076 | D78: 85.30000305 | E78: 3.5 | F78: 27.20000076 | G78: 30.70000076
A79: NAICS 62 - Health Care and Social Assistance | B79: 64.5 | C79: 35.5 | D79: 94.59999847 | E79: 2.099999905 | F79: 31.5 | G79: 33.5999999
A80: NAICS 48-49 - Transportation and Warehousing | B80: 85.59999847 | C80: 14.39999962 | D80: 72.69999695 | E80: 5.599999905 | F80: 15 | G80: 20.5999999
A81: NAICS 44-45 - Retail Trade | B81: 95.30000305 | C81: 4.699999809 | D81: 36.90000153 | E81: 2 | F81: 13.89999962 | G81: 15.89999962
A82: NAICS 721 - Accommodation Services | B82: 91.69999695 | C82: 8.300000191 | D82: 78.19999695 | E82: 4.699999809 | F82: 20.39999962 | G82: 25.09999943
A83: NAICS 23 - Construction | B83: 88.09999847 | C83: 11.89999962 | D83: 43.90000153 | E83: 10.89999962 | F83: 12 | G83: 22.89999962
A84: NAICS 61 - Educational Services | B84: 84.19999695 | C84: 15.80000019 | D84: 85.30000305 | E84: 3.700000048 | F84: 32.5 | G84: 36.20000005
A85: NAICS 561 - Administrative and Support Services | B85: 81 | C85: 19 | D85: 66.09999847 | E85: 7.900000095 | F85: 23.20000076 | G85: 31.10000086
A86: NAICS 22 - Utilities | B86: 98.09999847 | C86: 1.899999976 | D86: 70.80000305 | E86: 6.900000095 | F86: 14.19999981 | G86: 21.0999999
A87: NAICS 811 - Repair and Maintenance | B87: 87.90000153 | C87: 12.10000038 | D87: 53.5 | E87: 11.19999981 | F87: 17.10000038 | G87: 28.30000019
A88: NAICS 812 - Personal and Laundry Services | B88: 83.19999695 | C88: 16.79999924 | D88: 76.90000153 | E88: 8.800000191 | F88: 23.60000038 | G88: 32.40000057
A89: NAICS 11 - Agriculture, Forestry, Fishing and Hunting | B89: 98.30000305 | C89: 1.700000048 | D89: 81.30000305 | E89: 4.5 | F89: 17.5 | G89: 22
